Cogmind - Beta 15 @@@ ROGUE MODE // 2025.08.18 @ 20:46:19 Player: JuustuToug Result: Destroyed by D-53 Grenadier with Mini Grenade Launcher Performance ------------- Evolutions (0) 0 Regions Visited (4) 800 Robots Destroyed (5) 25 Value Destroyed (56) 56 Prototype IDs (0) 0 Alien Tech Used (0) 0 Bonus (14) 14 TOTAL SCORE: 895 Bonus ------- Follower Combat Kills 14 Cogmind --------- Core Integrity 0/250 Matter 300/300 Energy 94/100 System Corruption 0% Temperature Cool (0) Movement Core (100) Ox1 Location -9/Mines Parts ------- > --- POWER (1) -------- (None) > --- PROPULSION (2) --- (None) > --- UTILITY (2) ------ Visual Processing Unit > --- WEAPON (2) ------- Makeshift Hammer Makeshift Sword > --- INVENTORY (5) ---- Light Ion Engine Small Storage Unit EM Pulse Gun Light Assault Rifle Datajack Peak State ------------ > --- POWER ------------ Light Ion Engine > --- PROPULSION ------- Aluminum Leg Aluminum Leg > --- UTILITY ---------- Medium Storage Unit Visual Processing Unit > --- WEAPON ----------- Makeshift Hammer Makeshift Sword > --- INVENTORY -------- Light Ion Engine Light Ion Engine Small Storage Unit EM Pulse Gun Small Laser Assault Rifle Light Assault Rifle Makeshift Shrapnel Gun Datajack [Rating: 15] Favorites ----------- Power Light Ion Engine Engine Light Ion Engine Propulsion Aluminum Leg Leg Aluminum Leg Utility Visual Processing Unit Storage Small Storage Unit Processor Visual Processing Unit Weapon Assault Rifle Energy Gun EM Pulse Gun Ballistic Gun Assault Rifle Impact Weapon Makeshift Hammer Slashing Weapon Makeshift Sword Special Melee Weapon Datajack Build | -11 -10 -10 -10 -9 ------- Run | Yrd Mat Min Exi Min Slots Evolved . | . . . . . Power . | . . . . . Propulsion . | . . . . . Utility . | . . . . . Weapon . | . . . . . Parts Attached 12 | 7 1 . 4 . Power 1 | 1 . . . . Engine 1 | 1 . . . . Core . | . . . . . Reactor . | . . . . . Propulsion 2 | 2 . . . . Treads . | . . . . . Leg 2 | 2 . . . . Wheel . | . . . . . Hover . | . . . . . Flight . | . . . . . Utility 3 | 1 1 . 1 . Device . | . . . . . Storage 2 | 1 . . 1 . Processor 1 | . 1 . . . Hackware . | . . . . . Protection . | . . . . . Artifact . | . . . . . Weapon 6 | 3 . . 3 . Energy Gun 2 | 2 . . . . Energy Cannon . | . . . . . Ballistic Gun 1 | 1 . . . . Ballistic Cannon . | . . . . . Launcher . | . . . . . Special Weapon . | . . . . . Impact Weapon 1 | . . . 1 . Slashing Weapon 1 | . . . 1 . Piercing Weapon . | . . . . . Special Melee Weapon 1 | . . . 1 . Unidentified Prototypes . | . . . . . Parts Lost 3 | . . . . 3 Power 1 | . . . . 1 Propulsion 2 | . . . . 2 Utility . | . . . . . Weapon . | . . . . . Highest Loss Streak 3 | . . . . 3 To Critical Strikes . | . . . . . Average Backups 6 | 2 2 4 6 9 Power 1 | 1 1 2 2 2 Propulsion . | . . . . . Utility . | . . . . 1 Weapon 2 | . 1 1 3 5 Tool/Special . | . . . . . Unused Backups 4 | . . . . 4 Power 2 | . . . . 2 Propulsion . | . . . . . Utility . | . . . . . Weapon 2 | . . . . 2 Tool/Special . | . . . . . Average Slot Usage (%) 98 | . 93 100 100 100 Engine 14 | . 14 14 14 14 Leg 28 | . 28 28 28 28 Storage 14 | . 14 14 14 14 Processor 12 | . 8 14 14 14 Energy Gun 8 | . 14 14 8 . Ballistic Gun 8 | . 14 14 8 . Impact Weapon 4 | . . . 3 14 Slashing Weapon 5 | . . . 5 14 Peak Build Rating 15 | 6 8 8 15 15 Average Rating 10 | 3 7 8 10 14 On Entrance 7 | . 6 8 8 15 Naked Turns . | . . . . . Heaviest Build 18 | 12 12 12 18 18 Greatest Support 20 | 20 20 20 20 20 Greatest Overweight (x) 1 | 1 . . . 1 Average Overweight (x) . | . . . . . Largest Inventory Capacity 10 | 8 8 8 10 10 Average Capacity 8 | 7 8 8 9 9 Most Carried 9 | 7 4 5 9 9 Average Carried 6 | 2 2 4 6 8 Final Capacity 10 | 8 8 8 10 5 Final Carried 9 | 2 4 5 9 5 Class Distribution -------------------- 94% | Mutant 5% | Commander-Mutant Dominant Class ---------------- Mutant | -10/Materials Mutant | -10/Mines Mutant | -10/Exiles Mutant | -9/Mines Resources | -11 -10 -10 -10 -9 ----------- Run | Yrd Mat Min Exi Min Matter Collected 348 | 209 77 12 . 50 Remotely . | . . . . . Salvage Created 97 | . 26 52 . 19 Parts 11 | . 3 4 . 4 Haulers Intercepted . | . . . . . Recyclers Shooed . | . . . . . Parts Field Recycled . | . . . . . Retrieved Matter . | . . . . . Parts Self-Destructed . | . . . . . Prevented . | . . . . . Kills | -11 -10 -10 -10 -9 ------- Run | Yrd Mat Min Exi Min Combat Hostiles Destroyed 4 | . . 3 . 1 Melee 1 | . . . . 1 Guns 3 | . . 3 . . Classes Destroyed 2 | . 1 1 . . Watcher 1 | . 1 . . . Swarmer 4 | . . 3 . 1 Best Kill Streak 3 | . 1 3 . 1 Combat Bots Only 3 | . . 3 . 1 Max Kills in Single Turn 2 | . 1 2 . 1 Gunslinging 1 | . . 1 . . Exploded . | . . . . . Melee 1 | . . . . 1 Uniques/NPCs Destroyed . | . . . . . Combat | -11 -10 -10 -10 -9 -------- Run | Yrd Mat Min Exi Min Hostile Shots Fired 26 | . . 14 . 12 Missed 6 | . . 5 . 1 Hits 20 | . . 9 . 11 Projectile 20 | . . 9 . 11 AOE 11 | . . . . 11 Damage Taken 576 | . . 71 . 505 Core 261 | . . 52 . 209 Absorbed by Shields . | . . . . . Core Remaining (%) 100 | 100 . . . . Volleys Fired 6 | . 2 4 . . Largest 2 | . 2 2 . . Hottest 60 | . 60 60 . . Shots Fired 12 | . 4 8 . . Gun 12 | . 4 8 . . Cannon . | . . . . . Launcher . | . . . . . Special . | . . . . . Kinetic 6 | . 2 4 . . Thermal . | . . . . . Explosive . | . . . . . Electromagnetic 6 | . 2 4 . . Robot Hit Streak 3 | . 1 3 . . Robot Miss Streak 2 | . 2 1 . . Penetration Max . | . . . . . Secondary Targets 2 | . . 2 . . Max Gunslinging Chain 1 | . . 1 . . Shots Hit Robots 12 | . 1 6 4 1 Core Hits 5 | . 1 3 . 1 Critical Kills . | . . . . . Critical Parts Destroyed . | . . . . . Critical Strikes . | . . . . . Melee Attacks 8 | . . . 4 4 Impact 1 | . . . . 1 Slashing 3 | . . . . 3 Piercing . | . . . . . Sneak Attacks 3 | . . . 2 1 Combat Hostiles 1 | . . . . 1 Follow-up Attacks 1 | . . . . 1 Damage Inflicted 168 | . 22 70 . 76 Guns 92 | . 22 70 . . Cannons . | . . . . . Explosions . | . . . . . Melee 76 | . . . . 76 Ramming . | . . . . . Kinetic 25 | . . 25 . . Thermal . | . . . . . Explosive . | . . . . . Electromagnetic 67 | . 22 45 . . Impact . | . . . . . Slashing 76 | . . . . 76 Piercing . | . . . . . Highest Corruption . | . . . . . Average Corruption . | . . . . . Corruption Purged . | . . . . . Corruption Blocked . | . . . . . Overload Shots . | . . . . . Overflow Damage . | . . . . . Projectiles . | . . . . . Explosions . | . . . . . Melee . | . . . . . Knockbacks . | . . . . . Impact . | . . . . . Kinetic . | . . . . . Secondary . | . . . . . Self-Inflicted Damage . | . . . . . Shots . | . . . . . Rammed . | . . . . . Targets Rammed . | . . . . . Kicked . | . . . . . Crushed . | . . . . . Highest Temperature . | . . . . . Average Temperature . | . . . . . Received Heat Transfer 6 | . . . . 6 Siege Activations . | . . . . . Martial Activations . | . . . . . Shielding Activations . | . . . . . Robots Disrupted . | . . . . . Combat Hostiles . | . . . . . Robots Corrupted . | . . . . . Combat Hostiles . | . . . . . Parts Fried . | . . . . . Impact Corruptions . | . . . . . Robots Melted . | . . . . . Combat Hostiles . | . . . . . Parts Melted . | . . . . . Heat Transferred . | . . . . . Parts Sabotaged . | . . . . . Parts Stolen . | . . . . . Parts Stripped . | . . . . . Power Chain Reactions . | . . . . . Alert | -11 -10 -10 -10 -9 ------- Run | Yrd Mat Min Exi Min Maximum Alert Level . | . . . . . Low Security (%) 100 | 100 100 100 . 100 Level 1 . | . . . . . Level 2 . | . . . . . Level 3 . | . . . . . Level 4 . | . . . . . Level 5 . | . . . . . High Security . | . . . . . Max Security . | . . . . . Peak Influence 82 | . 16 71 . 82 Initial 1 | . . 1 . . Average 18 | . 1 33 . 28 Influence Increases 184 | . 27 75 . 82 Destroy 0b10 Robot/C 120 | . . 60 . 60 Destroy 0b10 Robot/NC 5 | . 5 . . . Destroy Leader 22 | . 2 10 . 10 Allied During Kill 12 | . . . . 12 Successful Hack 25 | . 20 5 . . Influence Decreases 184 | . 23 79 . 82 Entered New Map 3 | . . 3 . . Time Decay 181 | . 23 76 . 82 Squads Dispatched . | . . . . . Investigation . | . . . . . Extermination . | . . . . . Reinforcement . | . . . . . Assault . | . . . . . Garrison . | . . . . . Intercept . | . . . . . Searches Triggered . | . . . . . Construction Impeded . | . . . . . Haulers Reinforced . | . . . . . Active Scanning Responses . | . . . . . Cargo Convoy Interrupts . | . . . . . Stealth | -11 -10 -10 -10 -9 --------- Run | Yrd Mat Min Exi Min Distress Signals . | . . . . . Communications Jammed . | . . . . . Distress Signals . | . . . . . Times Spotted 9 | . 2 3 . 4 Peak Tracking Total 3 | . 1 3 . 2 Tactical Retreats . | . . . . . Traps | -11 -10 -10 -10 -9 ------- Run | Yrd Mat Min Exi Min Traps Triggered . | . . . . . Indirectly . | . . . . . Trap Hack Attempts . | . . . . . Triggered . | . . . . . Disarmed . | . . . . . Reprogrammed . | . . . . . Reused . | . . . . . Traps Extracted . | . . . . . Installed . | . . . . . Triggered . | . . . . . Machines | -11 -10 -10 -10 -9 ---------- Run | Yrd Mat Min Exi Min Machines Disabled . | . . . . . Max in Single Turn . | . . . . . Machines Repaired . | . . . . . Machines Dismantled . | . . . . . Machines Sabotaged . | . . . . . Overloaded Fab Kills . | . . . . . Hacking | -11 -10 -10 -10 -9 --------- Run | Yrd Mat Min Exi Min Machines Accessed 5 | . 4 1 . . Terminals 4 | . 3 1 . . Fabricators . | . . . . . Repair Stations . | . . . . . Recycling Units 1 | . 1 . . . Scanalyzers . | . . . . . Garrison Access . | . . . . . Total Hacks 10 | . 8 2 . . Successful 5 | . 4 1 . . Failed 5 | . 4 1 . . Catastrophic 1 | . . 1 . . Database Lockouts . | . . . . . Manual 1 | . . 1 . . Terminals 9 | . 7 2 . . Fabricators . | . . . . . Repair Stations . | . . . . . Recycling Units 1 | . 1 . . . Scanalyzers . | . . . . . Garrison Access . | . . . . . Terminal Hacks 4 | . 3 1 . . Locate Traps 1 | . 1 . . . Transport Status 1 | . 1 . . . Registered Components 1 | . 1 . . . Zone Layout 1 | . . 1 . . Fabricator Hacks . | . . . . . Repair Station Hacks . | . . . . . Recycling Unit Hacks 1 | . 1 . . . Report Inventory 1 | . 1 . . . Scanalyzer . | . . . . . Garrison Access Hacks . | . . . . . Unauthorized Hacks . | . . . . . Terminals . | . . . . . Fabricators . | . . . . . Repair Stations . | . . . . . Recycling Units . | . . . . . Scanalyzers . | . . . . . Garrison Access . | . . . . . Data Cores Recovered . | . . . . . Used . | . . . . . Hacking Detections 3 | . 2 1 . . Full Trace Events 1 | . 1 . . . Feedback Events . | . . . . . Feedback Blocked . | . . . . . Robot Schematics Acquired . | . . . . . Robots Built . | . . . . . Authchips . | . . . . . Time . | . . . . . Total Robot Build Rating . | . . . . . Part Schematics Acquired . | . . . . . Parts Built . | . . . . . Authchips . | . . . . . Time . | . . . . . Total Part Build Rating . | . . . . . Parts Repaired . | . . . . . Time . | . . . . . Parts Recycled . | . . . . . Recycled Matter . | . . . . . Retrieved Matter . | . . . . . Retrieved Components . | . . . . . Parts Scanalyzed . | . . . . . Part Schematics Acquired . | . . . . . Parts Damaged . | . . . . . Bothacking | -11 -10 -10 -10 -9 ------------ Run | Yrd Mat Min Exi Min Used RIF Installer . | . . . . . Robots Hacked . | . . . . . Non-combat . | . . . . . Combat . | . . . . . Robot Hacks Applied . | . . . . . Relay Couplers Released . | . . . . . Fabnet Peak Effective % . | . . . . . Robots Rewired 1 | . . . 1 . Allies Hacked . | . . . . . Hacks Repelled . | . . . . . Allies | -11 -10 -10 -10 -9 -------- Run | Yrd Mat Min Exi Min Total Allies 4 | . . 3 1 . Largest Group 4 | . . 3 4 3 Highest-Rated Group 48 | . . 40 48 40 Highest-Rated Ally 16 | . . 16 16 16 Total Orders . | . . . . . Ally Attacks 7 | . . . . 7 Total Damage 104 | . . . . 104 Kills 3 | . . . . 3 Allies Corrupted . | . . . . . Allies Melted . | . . . . . Intel | -11 -10 -10 -10 -9 ------- Run | Yrd Mat Min Exi Min Active Infowar (turns) 1145 | . 154 175 562 254 Optics 1145 | . 154 175 562 254 Robot Analysis Total . | . . . . . Derelict Logs Recovered 3 | . . 1 . 2 Drone Launches . | . . . . . Drone Recoveries . | . . . . . Exploration | -11 -10 -10 -10 -9 ------------- Run | Yrd Mat Min Exi Min Turns Passed 1303 | 54 258 175 562 254 Spaces Moved 959 | 37 207 121 445 149 Core 18 | 17 . . . 1 Treads . | . . . . . Legs 941 | 20 207 121 445 148 Wheels . | . . . . . Hover . | . . . . . Flight . | . . . . . Fastest Speed 50 | 50 120 120 120 100 Average Speed 119 | 106 120 120 120 120 Slowest Speed 190 | 120 120 120 120 190 Overloaded Moves . | . . . . . Propulsion Burnouts . | . . . . . Robots Hopped . | . . . . . Potential Cave-ins . | . . . . . Cave-ins Triggered . | . . . . . Exploration Rate (%) 44 | 4 47 46 90 34 Regions Visited 4 Branch Regions 3 Pre-discovered Areas 1 | . . . . 1 Known Exits Taken 1 | . . 1 . . Unknown Exits Taken 3 | 1 1 . 1 . Scrap Searched 2 | . . 1 . 1 Spaces Dug . | . . . . . Terrain Destroyed . | . . . . . Melee . | . . . . . Projectile . | . . . . . AOE . | . . . . . Terrain Rammed . | . . . . . Walls Destroyed . | . . . . . Machines Disabled . | . . . . . Actions | -11 -10 -10 -10 -9 --------- Run | Yrd Mat Min Exi Min Total 1096 | 52 212 143 468 221 Wait 97 | . . 18 11 68 Move 955 | 36 206 120 444 149 Hop . | . . . . . Pick Up 16 | 8 3 1 4 . Fast Attach . | . . . . . Attach 8 | 7 1 . . . Detach 1 | 1 . . . . Swap 5 | . . . 5 . Drop 1 | . . . . 1 Fire 6 | . 2 4 . . Melee 7 | . . . 4 3 Ram . | . . . . . Kick . | . . . . . Crush . | . . . . . Escape Stasis . | . . . . . Rewire . | . . . . . Trap . | . . . . . Miscellaneous . | . . . . . Route ------- -11/Scrapyard -10/Materials (discovered 3 exits: [*Mat] / *Min x2) -10/Mines -10/Exiles (discovered 2 exits: [*Min x2]) -9/Mines (discovered 1 exit: [*Mat]) History --------- Turn | Location | Event 13 | -11/Scrapyard | Discovered new exit (range 15) 55 | -11/Scrapyard | Entered Materials 76 | -10/Materials | Discovered new exit (range 15) 129 | -10/Materials | Discovered new exit (range 16) 289 | -10/Materials | Discovered new exit (range 16) 313 | -10/Materials | Build established: Mutant 313 | -10/Materials | Entered Mines 352 | -10/Mines | Identified exit to Exiles 368 | -10/Mines | Met a Derelict bent on vengeance 408 | -10/Mines | Assisted by bots powering up and referring to "LRC-V3" 465 | -10/Mines | Deemed a non-threat by the Exiles lab entrance 488 | -10/Mines | Entered Exiles 488 | -10/Exiles | Found Exiles lab destroyed 488 | -10/Exiles | Accompanied by 3 allies 505 | -10/Exiles | Discovered new exit (range 17) 1019 | -10/Exiles | Discovered new exit (range 15) 1050 | -10/Exiles | Entered Mines 1050 | -9/Mines | Accompanied by 4 allies 1066 | -9/Mines | Learned location of Zion (-6) 1083 | -9/Mines | Learned Materials emergency access door positions 1192 | -9/Mines | Discovered new exit (range 9) 1283 | -9/Mines | Assembled infested the area 1288 | -9/Mines | Assisted by a Guerilla fighting off Assembled 1297 | -9/Mines | Core integrity fell below 50% 1303 | -9/Mines | Core integrity fell below 20% 1304 | -9/Mines | Destroyed by D-53 Grenadier with Mini Grenade Launcher Last Messages --------------- 01269_ U-05 Engineer lays Concrete. 01283_ ALERT: Infestation in the mines, dispatching Demolisher response squad. 01288_ A derelict emerges from the shadows: "You need to get out of here! I've been tracking a group of Assembled to figure out where they're coming from, and they're closing on this area, come on!" 01294_ C-30 ARC bursts open, deploying its payload. 01294_ D-53 Grenadier unfolds itself. 01294_ Trooper 1a destroyed. 01296_ U-05 Engineer builds a Wall. 01300_ Aluminum Leg destroyed. 01300_ Lgt. Ion Engine destroyed. 01300_ U-05 Engineer builds a Wall. 01301_ The unstable cave ceiling collapses. 01302_ Aluminum Leg destroyed. 01303_ The unstable cave ceiling collapses. 01303_ Dropped Med. Storage Unit. Map ----- +----------------------------------------------------+ | ??????????????????# """ #???# # | | ??????????????????## """ #???## # | | ???????????????????# """ ##???## | | ??????????????????## #?#### | | ???????????####??## #?# | | ??????????## #### ##?# ## # | | ?????????## #??# ### ## | | ?????????# #??# #?####? | | ?????????# #### ####### | | ?????????# ## | | ?????????# #### ########### | | ?????????# ###?## ##?????????? | | ?????????# ##??## ###??????????? | | ?????????# #????# ##????????????? | | ?????????###?????# ##????????????? | | ?????????????????# #????????????? | | ?????????????????# #????????????? | | ?????????????????# #????????????? | | ??##########?????## #????????????? | | ??# #??????## #????????????? | | ??# ########## #????????????? | | ??# ## # #????????????? | | ??# < #????????????? | | ??# #????????????? | | ??# """" [ ###????????????? | | ??# """" @![ ##????????????? | | ??# """" #* d% ##???????????? | | ??# d %[#???????????? | | ??######## # * #???????????? | | ?????????### # # #???????????? | | ???????????#### # #???????????? | | ?????????????# ## ## #???????????? | | ????????????# ##?### #???????????? | | ???????????# ##????# #???????????? | | ???????????# ##?????# #???????????? | | ???????????# #???????# #???????????? | | ???????????###????????# #???????????? | | ??????????????????????# #???????????? | | ??????????????????????# #???????????? | | ??????????????????????# #???????????? | | ??????????????????????# #???????????? | | ??????????????????????# #???????????? | | ??????????????????????# #???????????? | | ??????????????????????# #???????????? | | ??????????????????????? ????????????? | | ??????????????????????? ????????????? | | ??????????????????????? ????????????? | | ??????????????????????? ????????????? | | ??????????????????????? ????????????? | | ??????????????????????? ????????????? | +----------------------------------------------------+ Best States ------------- Heat Dissipation 25 Energy Generation 10 Energy Capacity 125 Matter Stores 300 Matter Capacity 300 Sight Range 18 Terrain Scan Density 10 Evasion (%) 55 Item Schematics ----------------- None Robot Schematics ------------------ None Fabricated ------------ Nothing Repaired ---------- Nothing Alien Tech Used ----------------- None Achievements -------------- A New Friend Challenges ------------ None Game ------ Seed ResetArmorImmobilizer Manual? 0 Play Time 00:08:15 Cumulative 55.7 hours Start 2025.08.18 @ 20:37:20 End 2025.08.18 @ 20:46:19 Sessions 1 Manual Loads 0 Difficulty Rogue Special Mode None Game No. 43 Rogue 43 Adventurer 0 Explorer 0 Win Type - Total 1 Types 1/0/0/0/0/0/0/0/0/0 Lore% 53 Gallery% 43 Achievement% 37 Wizard Run 0 Options --------- Layout 1 ASCII 0 Keyboard 0 Movement Mouse Keybinds 0 Fullscreen 1 Font 24/Smallcaps Map View 50x35 Zoom Use 0% Tactical HUD 1 Map Filters NONE Filters NONE Steam 1 RUN: aeb6dce7-f608-4f29-8e1a-0b1662d37da0